Cogmind - Beta 13 @@@ ROGUE MODE // 2024.05.28 @ 10:48:54 Player: Ape Result: Destroyed by P-70 Sage with Tesla Rifle Performance ------------- Evolutions (5) 2500 Regions Visited (10) 2000 Robots Destroyed (157) 785 Value Destroyed (5891) 5891 Prototype IDs (11) 220 Alien Tech Used (0) 0 Bonus (1837) 1837 TOTAL SCORE: 13233 Bonus ------- High Alert Combat Kills 1679 Follower Combat Kills 164 Friendly Fire -6 Cogmind --------- Core Integrity 0/1000 Matter 224/300 Energy 100/100 System Corruption 14% Temperature Cool (0) Movement Core (50) Location -5/Factory Parts ------- > --- POWER (1) -------- (None) > --- PROPULSION (2) --- (None) > --- UTILITY (11) ----- Targeting Computer Improved System Shield > --- WEAPON (3) ------- (None) > --- INVENTORY (5) ---- Wheel Faulty Cooled Pulse Rifle High-powered Shotgun Flak Gun Flak Gun Peak State ------------ > --- POWER ------------ Improved Deuterium Engine > --- PROPULSION ------- Armored Huge Wheel > --- UTILITY ---------- Improved Cooling System High-capacity Storage Unit Hardened Medium Armor Plating Hardened Medium Armor Plating Hardened Medium Armor Plating Hardened Medium Armor Plating Hardened Medium Armor Plating Improved Light Armor Plating Improved Medium Armor Plating > --- WEAPON ----------- Enhanced Autogun Enhanced Autogun Enhanced Autogun > --- INVENTORY -------- Improved Deuterium Engine Heavy Deuterium Engine Wheel Compact Wheel Compact Wheel Matter Compressor Hardened Medium Armor Plating Hardened Medium Armor Plating Cooled Pulse Rifle Cooled Pulse Rifle Cooled Pulse Rifle High-powered Shotgun Gauss Rifle Gauss Rifle Gauss Rifle Flak Gun Flak Gun Flak Gun Missile Launcher Chainsword [Rating: 58] Favorites ----------- Power Improved Deuterium Engine Engine Improved Deuterium Engine Power Core Light Nuclear Core Propulsion Compact Wheel Wheel Compact Wheel Utility High-capacity Storage Unit Device Improved Heat Sink Storage High-capacity Storage Unit Processor Targeting Computer Hackware Improved System Shield Protection Hardened Medium Armor Plating Weapon Enhanced Autogun Energy Gun Field Laser Ballistic Gun Enhanced Autogun Ballistic Cannon Light Cannon Launcher Rocket Array Build | -11 -10 -10 -9 -9 -9 -8 -8 -7 -6 -5 ------- Run | Yrd Mat Min Mat Min Exi Min Mat Fac Fac Fac Slots Evolved 10 | . . . 2 . . . 2 2 2 2 Power . | . . . . . . . . . . . Propulsion . | . . . . . . . . . . . Utility 9 | . . . 2 . . . 1 2 2 2 Weapon 1 | . . . . . . . 1 . . . Parts Attached 113 | 7 12 3 5 6 . . 13 17 39 11 Power 14 | 2 3 1 1 1 . . 1 2 2 1 Engine 12 | 2 2 1 1 1 . . 1 2 2 . Core 2 | . 1 . . . . . . . . 1 Reactor . | . . . . . . . . . . . Propulsion 22 | 2 3 . . 2 . . 4 3 5 3 Treads . | . . . . . . . . . . . Leg . | . . . . . . . . . . . Wheel 22 | 2 3 . . 2 . . 4 3 5 3 Hover . | . . . . . . . . . . . Flight . | . . . . . . . . . . . Utility 44 | 1 4 1 3 1 . . 3 10 20 1 Device 10 | . 1 . . . . . 1 2 5 1 Storage 4 | 1 1 . . . . . . 1 1 . Processor 2 | . 1 . . . . . . . 1 . Hackware 1 | . . . . . . . . . 1 . Protection 27 | . 1 1 3 1 . . 2 7 12 . Artifact . | . . . . . . . . . . . Weapon 33 | 2 2 1 1 2 . . 5 2 12 6 Energy Gun 2 | . . . . . . . 1 . . 1 Energy Cannon . | . . . . . . . . . . . Ballistic Gun 23 | 2 1 . 1 2 . . 4 1 9 3 Ballistic Cannon 2 | . 1 1 . . . . . . . . Launcher 6 | . . . . . . . . 1 3 2 Special Weapon . | . . . . . . . . . . . Impact Weapon . | . . . . . . . . . . . Slashing Weapon . | . . . . . . . . . . . Piercing Weapon . | . . . . . . . . . . . Special Melee Weapon . | . . . . . . . . . . . Unidentified Prototypes 3 | . . . . . . . 1 . 1 1 Parts Lost 70 | . 7 1 2 5 . . 10 4 27 14 Power 6 | . 1 . . . . . . 1 2 2 Propulsion 19 | . 3 . . 2 . . 4 2 3 5 Utility 26 | . 1 1 1 1 . . 3 1 16 2 Weapon 19 | . 2 . 1 2 . . 3 . 6 5 Highest Loss Streak 8 | . 2 1 2 3 . . 4 1 7 8 To Critical Strikes . | . . . . . . . . . . . Average Slot Usage (%) 92 | . 97 99 99 99 100 100 87 96 89 47 Engine 7 | . 2 14 11 10 11 11 9 7 5 . Core 1 | . 10 . . . . . . . . . Wheel 18 | . 27 28 22 21 22 22 16 13 8 7 Device 4 | . . . . . . . 5 10 11 4 Storage 9 | . 14 14 11 11 11 11 9 8 6 4 Processor 2 | . 10 . . . . . . . 1 5 Protection 23 | . 2 13 32 33 33 33 25 30 32 1 Ballistic Gun 19 | . 23 4 7 20 22 22 19 22 19 12 Ballistic Cannon 2 | . 4 23 14 . . . . . . . Naked Turns . | . . . . . . . . . . . Heaviest Build 115 | 14 52 56 60 59 56 56 60 108 115 79 Greatest Support 32 | 32 32 32 32 32 20 20 32 32 32 26 Greatest Overweight (x) 5 | . 3 1 1 2 2 2 2 5 4 4 Average Overweight (x) 1 | . 1 1 1 1 2 2 1 2 2 1 Largest Inventory Capacity 20 | 8 20 20 20 20 20 20 20 20 20 20 Average Capacity 19 | 7 19 20 20 20 20 20 20 20 20 18 Most Carried 20 | 2 18 20 20 20 18 19 20 20 20 14 Average Carried 17 | . 13 19 18 16 18 18 18 19 17 11 Final Capacity 20 | 8 20 20 20 20 20 20 20 20 20 5 Final Carried 20 | 2 16 19 20 18 18 19 16 20 10 5 Class Distribution -------------------- 55% | Mutant 30% | Tank 7% | Scavenger-Tank 4% | Scavenger-Gunner Dominant Class ---------------- Mutant | -10/Materials Mutant | -10/Mines Mutant | -9/Materials Mutant | -9/Mines Mutant | -9/Exiles Mutant | -8/Mines Mutant | -8/Materials Tank | -7/Factory Tank | -6/Factory Mutant | -5/Factory Resources | -11 -10 -10 -9 -9 -9 -8 -8 -7 -6 -5 ----------- Run | Yrd Mat Min Mat Min Exi Min Mat Fac Fac Fac Matter Collected 5276 | 204 532 280 141 206 . 43 329 1232 2051 258 Remotely . | . . . . . . . . . . . Salvage Created 5729 | . 453 23 114 198 . . 500 1612 2315 514 Parts 312 | . 23 2 6 20 . . 31 89 118 23 Haulers Intercepted 7 | . 1 . . . . . 2 3 1 . Recyclers Shooed 8 | . 1 . . 2 . . . . 5 . Parts Field Recycled . | . . . . . . . . . . . Retrieved Matter . | . . . . . . . . . . . Parts Self-Destructed . | . . . . . . . . . . . Prevented . | . . . . . . . . . . . Kills | -11 -10 -10 -9 -9 -9 -8 -8 -7 -6 -5 ------- Run | Yrd Mat Min Mat Min Exi Min Mat Fac Fac Fac Combat Hostiles Destroyed 136 | . 13 3 3 11 . . 11 31 51 13 Melee 1 | . . . . . . . . . 1 . Guns 93 | . 10 . 1 10 . . 11 27 31 3 Cannons 9 | . 3 3 2 1 . . . . . . AOE 33 | . . . . . . . . 4 19 10 Classes Destroyed 16 | . 4 . 1 . . . 2 4 5 . Worker 9 | . . . . . . . . 1 6 2 Builder 2 | . . . . . . . . . 2 . Tunneler 1 | . . . . . . . . . 1 . Hauler 7 | . 1 . . . . . 2 3 1 . Recycler 1 | . . . . . . . . . 1 . Mechanic 1 | . . . . . . . . 1 . . Operator 2 | . 1 . . . . . . . 1 . Swarmer 35 | . 3 3 . 10 . . 4 1 11 3 Saboteur 1 | . . . . . . . . . 1 . Grunt 63 | . 10 . . 1 . . 3 21 26 2 Brawler 6 | . . . . . . . . 1 3 2 Duelist 6 | . . . . . . . 1 2 1 2 Protector 2 | . . . . . . . . . 1 1 Sentry 8 | . . . 3 . . . 2 1 1 1 Hunter 10 | . . . . . . . 1 4 5 . Programmer 5 | . . . . . . . . 1 2 2 Best Kill Streak 19 | . 2 3 1 4 . . 7 6 19 10 Combat Bots Only 13 | . 2 3 1 4 . . 7 6 13 10 Max Kills in Single Turn 7 | . 1 1 1 2 . . 2 4 4 7 Gunslinging 1 | . . . . . . . 1 1 1 . Exploded 7 | . . . . . . . . 3 3 7 Melee 1 | . . . . . . . . . 1 . Uniques/NPCs Destroyed . | . . . . . . . . . . . Combat | -11 -10 -10 -9 -9 -9 -8 -8 -7 -6 -5 -------- Run | Yrd Mat Min Mat Min Exi Min Mat Fac Fac Fac Hostile Shots Fired 921 | . 98 20 28 57 . . 117 149 308 144 Missed 257 | . 28 3 4 11 . . 34 47 84 46 Damage Taken 10300 | . 789 133 358 375 . . 1123 1590 3823 2109 Core 2009 | . 151 39 60 26 . . 268 107 355 1003 Absorbed by Shields . | . . . . . . . . . . . Redirected to Shielding 163 | . . . 4 14 . . 56 7 82 . Ignored by Resistances 47 | . . . . . . . . . 21 26 Core Remaining (%) 65 | 100 . 24 . . . 78 51 84 58 . Volleys Fired 423 | . 79 11 14 28 . . 51 92 126 22 Largest 3 | . 2 2 2 2 . . 3 3 3 3 Hottest 113 | . 55 70 70 55 . . 113 75 84 88 Shots Fired 1027 | . 158 22 24 53 1 . 111 269 338 51 Gun 946 | . 136 4 6 45 1 . 111 265 331 47 Cannon 66 | . 22 18 18 8 . . . . . . Launcher 15 | . . . . . . . . 4 7 4 Special . | . . . . . . . . . . . Kinetic 993 | . 158 22 24 53 1 . 92 265 331 47 Thermal 19 | . . . . . . . 19 . . . Explosive 15 | . . . . . . . . 4 7 4 Electromagnetic . | . . . . . . . . . . . Robot Hit Streak 18 | . 9 5 9 6 . . 18 14 15 12 Robot Miss Streak 6 | . 5 4 1 4 . . 3 4 6 2 Penetration Max 1 | . . . . . . . . . 1 . Secondary Targets 16 | . . . . . . . 3 8 5 . Max Gunslinging Chain 1 | . . . . . . . 1 1 1 . Shots Hit Robots 661 | . 101 12 19 27 . . 75 162 227 38 Core Hits 420 | . 29 4 6 17 . . 27 83 189 65 Critical Kills 1 | . . . . . . . . . . 1 Critical Parts Destroyed 1 | . . . . . . . . . . 1 Critical Strikes 4 | . . 1 . . . . . . . 3 Destroy 3 | . . . . . . . . . . 3 Blast 1 | . . 1 . . . . . . . . Melee Attacks . | . . . . . . . . . . . Impact . | . . . . . . . . . . . Slashing . | . . . . . . . . . . . Piercing . | . . . . . . . . . . . Sneak Attacks . | . . . . . . . . . . . Combat Hostiles . | . . . . . . . . . . . Follow-up Attacks . | . . . . . . . . . . . Damage Inflicted 16544 | . 1179 185 310 364 . . 873 3284 7688 2661 Guns 9873 | . 968 25 53 294 . . 873 2795 4070 795 Cannons 698 | . 211 160 257 70 . . . . . . Explosions 5938 | . . . . . . . . 489 3587 1862 Melee . | . . . . . . . . . . . Ramming 35 | . . . . . . . . . 31 4 Kinetic 10386 | . 1179 185 310 364 . . 688 2795 4070 795 Thermal 185 | . . . . . . . 185 . . . Explosive 5938 | . . . . . . . . 489 3587 1862 Electromagnetic . | . . . . . . . . . . . Impact . | . . . . . . . . . . . Slashing . | . . . . . . . . . . . Piercing . | . . . . . . . . . . . Highest Corruption 14 | . . . 5 5 5 5 . 2 3 14 Average Corruption 3 | . . . 4 5 5 5 . 2 2 7 Corruption Purged . | . . . . . . . . . . . Corruption Blocked . | . . . . . . . . . . . Effects 84 | . . . 6 24 8 8 . 10 21 7 Message Errors 22 | . . . 1 6 2 2 . 3 4 4 Matter Fused 28 | . . . 3 7 4 3 . 4 7 . Heat Flow Errors 8 | . . . . 4 . 1 . 1 2 . Energy Discharges 8 | . . . 2 2 1 1 . . 2 . Parts Rejected 1 | . . . . 1 . . . . . . Parts Fused 2 | . . . . 1 . . . . 1 . Data Loss (minor) 4 | . . . . 1 . 1 . . 2 . Data Loss (major) 2 | . . . . . . . . 1 . 1 Misfires 5 | . . . . 2 1 . . 1 1 . Alerts 2 | . . . . . . . . . . 2 Weapon Failures 2 | . . . . . . . . . 2 . Overload Shots . | . . . . . . . . . . . Overflow Damage 151 | . . . . . . . . . 91 60 Projectiles . | . . . . . . . . . . . Explosions 151 | . . . . . . . . . 91 60 Melee . | . . . . . . . . . . . Knockbacks 5 | . . 2 . 3 . . . . . . Impact . | . . . . . . . . . . . Kinetic 5 | . . 2 . 3 . . . . . . Secondary . | . . . . . . . . . . . Self-Inflicted Damage 183 | . . . . . . . . . 39 144 Shots 7 | . . . . . . . . . 1 6 Rammed 5 | . . . . . . . . . 3 2 Targets Rammed 5 | . . . . . . . . . 3 2 Kicked . | . . . . . . . . . . . Crushed . | . . . . . . . . . . . Highest Temperature 362 | . 114 117 123 265 1 130 101 101 362 5 Average Temperature 54 | . 24 50 50 78 1 73 28 25 96 5 Received Heat Transfer 2299 | . 414 . 126 24 . . 306 531 754 144 Siege Activations . | . . . . . . . . . . . Robots Corrupted . | . . . . . . . . . . . Combat Hostiles . | . . . . . . . . . . . Parts Fried . | . . . . . . . . . . . Impact Corruptions . | . . . . . . . . . . . Robots Melted . | . . . . . . . . . . . Combat Hostiles . | . . . . . . . . . . . Parts Melted . | . . . . . . . . . . . Heat Transferred 407 | . . . . . . . 407 . . . Parts Sabotaged 3 | . . . . . . . . . 3 . Parts Stolen . | . . . . . . . . . . . Parts Stripped . | . . . . . . . . . . . Power Chain Reactions . | . . . . . . . . . . . Alert | -11 -10 -10 -9 -9 -9 -8 -8 -7 -6 -5 ------- Run | Yrd Mat Min Mat Min Exi Min Mat Fac Fac Fac Peak Influence 1509 | . 150 67 152 268 . 96 224 693 1509 997 Initial 686 | . . 52 23 58 . . 37 91 266 686 Average 324 | . 62 60 77 145 . 76 129 285 924 748 Maximum Alert Level 4 | . . . . 1 . . 1 2 4 3 Low Security (%) 62 | 100 100 100 100 85 . 100 89 49 . . Level 1 10 | . . . . 14 . . 10 21 19 . Level 2 9 | . . . . . . . . 29 10 16 Level 3 12 | . . . . . . . . . 39 83 Level 4 5 | . . . . . . . . . 29 . Level 5 . | . . . . . . . . . . . High Security . | . . . . . . . . . . . Max Security . | . . . . . . . . . . . Squads Dispatched 35 | . 4 . . . . . 1 9 17 4 Investigation 11 | . 3 . . . . . 1 4 1 2 Extermination 3 | . . . . . . . . 1 2 . Reinforcement 9 | . 1 . . . . . . 3 4 1 Assault 7 | . . . . . . . . 1 5 1 Garrison 5 | . . . . . . . . . 5 . Intercept . | . . . . . . . . . . . Searches Triggered . | . . . . . . . . . . . Construction Impeded 1 | . . . . . . . . . 1 . Haulers Reinforced 3 | . . . . . . . . 2 1 . Active Scanning Responses . | . . . . . . . . . . . Cargo Convoy Interrupts . | . . . . . . . . . . . Stealth | -11 -10 -10 -9 -9 -9 -8 -8 -7 -6 -5 --------- Run | Yrd Mat Min Mat Min Exi Min Mat Fac Fac Fac Distress Signals 8 | . 4 . . . . . 2 2 . . Communications Jammed . | . . . . . . . . . . . Distress Signals . | . . . . . . . . . . . Times Spotted 203 | . 29 4 4 14 . . 19 48 60 25 Peak Tracking Total 14 | . 5 3 2 4 . . 9 7 12 14 Tactical Retreats 10 | . 4 . . 1 . . . 2 1 2 Traps | -11 -10 -10 -9 -9 -9 -8 -8 -7 -6 -5 ------- Run | Yrd Mat Min Mat Min Exi Min Mat Fac Fac Fac Traps Triggered 14 | . 2 . 3 . . . . 5 2 2 Indirectly . | . . . . . . . . . . . Trap Hack Attempts . | . . . . . . . . . . . Triggered . | . . . . . . . . . . . Disarmed . | . . . . . . . . . . . Reprogrammed . | . . . . . . . . . . . Reused . | . . . . . . . . . . . Traps Extracted . | . . . . . . . . . . . Installed . | . . . . . . . . . . . Triggered . | . . . . . . . . . . . Machines | -11 -10 -10 -9 -9 -9 -8 -8 -7 -6 -5 ---------- Run | Yrd Mat Min Mat Min Exi Min Mat Fac Fac Fac Machines Disabled 21 | . . . . . . 1 . . 18 2 Max in Single Turn 6 | . . . . . . . . . 6 2 Garrison Access 3 | . . . . . . . . 2 1 . Machines Repaired . | . . . . . . . . . . . Machines Dismantled . | . . . . . . . . . . . Machines Sabotaged . | . . . . . . . . . . . Overloaded Fab Kills . | . . . . . . . . . . . Hacking | -11 -10 -10 -9 -9 -9 -8 -8 -7 -6 -5 --------- Run | Yrd Mat Min Mat Min Exi Min Mat Fac Fac Fac Machines Accessed 29 | . 8 . 2 . 4 . 2 6 5 2 Terminals 15 | . 6 . 1 . . . 2 2 3 1 Fabricators 2 | . . . . . . . . 1 . 1 Repair Stations 1 | . . . . . . . . . 1 . Recycling Units 2 | . 2 . . . . . . . . . Scanalyzers 2 | . . . 1 . . . . 1 . . Garrison Access 3 | . . . . . . . . 2 1 . Total Hacks 59 | . 14 . 5 . 4 . 4 15 14 3 Successful 25 | . 8 . 3 . 4 . 1 3 6 . Failed 34 | . 6 . 2 . . . 3 12 8 3 Catastrophic 8 | . 1 . . . . . . 3 2 2 Database Lockouts . | . . . . . . . . . . . Manual 27 | . 8 . 2 . . . 4 2 8 3 Terminals 36 | . 12 . 2 . . . 4 7 10 1 Fabricators 3 | . . . . . . . . 1 . 2 Repair Stations 2 | . . . . . . . . . 2 . Recycling Units 2 | . 2 . . . . . . . . . Scanalyzers 5 | . . . 3 . . . . 2 . . Garrison Access 7 | . . . . . . . . 5 2 . Terminal Hacks 12 | . 4 . . . 4 . . 1 3 . Record 4 | . . . . . 4 . . . . . Prototype ID Bank 3 | . 2 . . . . . . . 1 . Emergency Access Points 1 | . . . . . . . . . 1 . Alert Level 1 | . . . . . . . . . 1 . Unreport Threat 2 | . 1 . . . . . . 1 . . Locate Traps 1 | . 1 . . . . . . . . . Fabricator Hacks . | . . . . . . . . . . . Repair Station Hacks 1 | . . . . . . . . . 1 . Scan Component 1 | . . . . . . . . . 1 . Recycling Unit Hacks . | . . . . . . . . . . . Scanalyzer 2 | . . . 2 . . . . . . . Insert Component 1 | . . . 1 . . . . . . . Analyze 1 | . . . 1 . . . . . . . Garrison Access Hacks 1 | . . . . . . . . 1 . . Seal Access 1 | . . . . . . . . 1 . . Unauthorized Hacks 9 | . 4 . 1 . . . 1 1 2 . Terminals 5 | . 2 . 1 . . . 1 . 1 . Botnet 5 | . 2 . 1 . . . 1 . 1 . Fabricators . | . . . . . . . . . . . Repair Stations . | . . . . . . . . . . . Recycling Units 2 | . 2 . . . . . . . . . Tunnel 2 | . 2 . . . . . . . . . Scanalyzers . | . . . . . . . . . . . Garrison Access 2 | . . . . . . . . 1 1 . Jam 2 | . . . . . . . . 1 1 . Data Cores Recovered 1 | . 1 . . . . . . . . . Used . | . . . . . . . . . . . Hacking Detections 22 | . 6 . 2 . . . 2 5 5 2 Full Trace Events 2 | . . . . . . . . 1 . 1 Feedback Events . | . . . . . . . . . . . Feedback Blocked . | . . . . . . . . . . . Robot Schematics Acquired . | . . . . . . . . . . . Robots Built . | . . . . . . . . . . . Authchips . | . . . . . . . . . . . Time . | . . . . . . . . . . . Total Robot Build Rating . | . . . . . . . . . . . Part Schematics Acquired 1 | . . . 1 . . . . . . . Parts Built . | . . . . . . . . . . . Authchips . | . . . . . . . . . . . Time . | . . . . . . . . . . . Total Part Build Rating . | . . . . . . . . . . . Parts Repaired . | . . . . . . . . . . . Time . | . . . . . . . . . . . Parts Recycled . | . . . . . . . . . . . Recycled Matter . | . . . . . . . . . . . Retrieved Matter . | . . . . . . . . . . . Retrieved Components . | . . . . . . . . . . . Parts Scanalyzed 1 | . . . 1 . . . . . . . Part Schematics Acquired 1 | . . . 1 . . . . . . . Parts Damaged . | . . . . . . . . . . . Bothacking | -11 -10 -10 -9 -9 -9 -8 -8 -7 -6 -5 ------------ Run | Yrd Mat Min Mat Min Exi Min Mat Fac Fac Fac Used RIF Installer . | . . . . . . . . . . . Robots Hacked . | . . . . . . . . . . . Non-combat . | . . . . . . . . . . . Combat . | . . . . . . . . . . . Robot Hacks Applied . | . . . . . . . . . . . Relay Couplers Released 2 | . . . . . . . . . 2 . Machine Destruction 2 | . . . . . . . . . 2 . Fabnet Peak Effective % . | . . . . . . . . . . . Robots Rewired . | . . . . . . . . . . . Allies Hacked . | . . . . . . . . . . . Hacks Repelled . | . . . . . . . . . . . Allies | -11 -10 -10 -9 -9 -9 -8 -8 -7 -6 -5 -------- Run | Yrd Mat Min Mat Min Exi Min Mat Fac Fac Fac Total Allies 5 | . . . . 5 . . . . . . Largest Group 3 | . . . . 3 3 3 3 . . . Highest-Rated Group 42 | . . . . 42 40 40 40 . . . Highest-Rated Ally 31 | . . . . 31 16 16 16 . . . Total Orders . | . . . . . . . . . . . Ally Attacks 36 | . . . . 7 . 7 22 . . . Total Damage 409 | . . . . 105 . 71 233 . . . Kills 11 | . . . . 2 . 3 6 . . . Allies Corrupted . | . . . . . . . . . . . Allies Melted . | . . . . . . . . . . . Intel | -11 -10 -10 -9 -9 -9 -8 -8 -7 -6 -5 ------- Run | Yrd Mat Min Mat Min Exi Min Mat Fac Fac Fac Robot Analysis Total . | . . . . . . . . . . . Derelict Logs Recovered 2 | . . 1 . 1 . . . . . . Drone Launches . | . . . . . . . . . . . Drone Recoveries . | . . . . . . . . . . . Exploration | -11 -10 -10 -9 -9 -9 -8 -8 -7 -6 -5 ------------- Run | Yrd Mat Min Mat Min Exi Min Mat Fac Fac Fac Turns Passed 7071 | 41 1184 479 274 824 377 271 570 1436 1221 394 Spaces Moved 4491 | 31 743 351 171 629 338 243 357 840 540 248 Core 58 | 1 . . . . . . . . . 57 Treads . | . . . . . . . . . . . Legs . | . . . . . . . . . . . Wheels 4433 | 30 743 351 171 629 338 243 357 840 540 191 Hover . | . . . . . . . . . . . Flight . | . . . . . . . . . . . Fastest Speed 50 | 50 100 115 115 110 110 110 110 115 120 50 Average Speed 119 | 98 115 115 115 110 110 110 112 132 139 109 Slowest Speed 175 | 100 145 115 115 115 110 110 115 175 160 160 Overloaded Moves . | . . . . . . . . . . . Propulsion Burnouts . | . . . . . . . . . . . Robots Hopped . | . . . . . . . . . . . Cave-ins Triggered . | . . . . . . . . . . . Exploration Rate (%) 48 | 3 95 94 20 98 71 65 33 28 11 10 Regions Visited 10 Branch Regions 4 Pre-discovered Areas 4 | . 2 2 . . . . . . . . Known Exits Taken 1 | . . . . . . . 1 . . . Unknown Exits Taken 9 | 1 1 1 1 1 1 1 . 1 1 . Scrap Searched 6 | . . 3 . 2 . 1 . . . . Spaces Dug . | . . . . . . . . . . . Terrain Destroyed 123 | . . . . . . . . 9 79 35 Melee . | . . . . . . . . . . . Projectile 5 | . . . . . . . . . . 5 AOE 118 | . . . . . . . . 9 79 30 Terrain Rammed . | . . . . . . . . . . . Walls Destroyed . | . . . . . . . . . . . Machines Disabled . | . . . . . . . . . . . Actions | -11 -10 -10 -9 -9 -9 -8 -8 -7 -6 -5 --------- Run | Yrd Mat Min Mat Min Exi Min Mat Fac Fac Fac Total 5523 | 38 924 407 224 713 343 246 445 1076 787 320 Wait 369 | . 69 29 29 47 6 3 9 85 61 31 Move 4481 | 30 742 350 170 628 337 242 356 839 539 248 Hop . | . . . . . . . . . . . Pick Up 83 | 1 19 8 5 4 . 1 10 19 12 4 Fast Attach 40 | 6 4 1 . . . . 2 10 11 6 Attach 53 | . 8 1 4 6 . . 10 2 21 1 Detach 11 | . 3 . . . . . 1 3 3 1 Swap 20 | 1 . 1 1 . . . 1 5 7 4 Drop 38 | . . 6 1 . . . 5 21 4 1 Fire 423 | . 79 11 14 28 . . 51 92 126 22 Melee . | . . . . . . . . . . . Ram 5 | . . . . . . . . . 3 2 Kick . | . . . . . . . . . . . Crush . | . . . . . . . . . . . Escape Stasis . | . . . . . . . . . . . Rewire . | . . . . . . . . . . . Trap . | . . . . . . . . . . . Miscellaneous . | . . . . . . . . . . . Route ------- -11/Scrapyard -10/Materials (discovered 4 exits: *Mat x3 / [*Min]) -10/Mines (discovered 2 exits: *Mat x2) -9/Materials -9/Mines (discovered 3 exits: *Mat x2 / *Exi) -9/Exiles -8/Mines -8/Materials (discovered 3 exits: *Fac x2 / [*Sto]) -7/Factory -6/Factory -5/Factory History --------- Turn | Location | Event 11 | -11/Scrapyard | Discovered new exit (range 15) 42 | -11/Scrapyard | Entered Materials 170 | -10/Materials | Discovered new exit (range 16) 307 | -10/Materials | Build established: Mutant 753 | -10/Materials | Discovered new exit (range 5) 950 | -10/Materials | Discovered new exit (range 8) 1073 | -10/Materials | Core integrity fell below 50% 1181 | -10/Materials | Discovered new exit (range 6) 1226 | -10/Materials | Entered Mines 1248 | -10/Mines | Learned location of Zion (-6) 1344 | -10/Mines | Discovered new exit (range 14) 1365 | -10/Mines | Joined a pair of Derelicts in attacking an 0b10 outpost 1695 | -10/Mines | Discovered new exit (range 10) 1705 | -10/Mines | Entered Materials 1705 | -9/Materials | Evolved 2 slots: Utility x2 1914 | -9/Materials | Discovered new exit (range 15) 1979 | -9/Materials | Entered Mines 2068 | -9/Mines | Lost 3 parts (2n1w) 2151 | -9/Mines | Discovered new exit (range 6) 2318 | -9/Mines | Discovered new exit (range 7) 2677 | -9/Mines | Assisted by bots powering up and referring to "LRC-V3" 2777 | -9/Mines | Deemed a non-threat by the Exiles lab entrance 2778 | -9/Mines | Discovered new exit (range 5) 2803 | -9/Mines | Entered Exiles 2803 | -9/Exiles | Found Exiles lab abandoned 2803 | -9/Exiles | Accompanied by 3 allies 3159 | -9/Exiles | Discovered new exit (range 12) 3180 | -9/Exiles | Entered Mines 3180 | -8/Mines | Accompanied by 3 allies 3429 | -8/Mines | Discovered new exit (range 14) 3451 | -8/Mines | Entered Materials 3451 | -8/Materials | Accompanied by 3 allies 3451 | -8/Materials | Evolved 2 slots: Utility x1, Weapon x1 3452 | -8/Materials | Identified exit to Factory 3687 | -8/Materials | Lost 3 allies 3751 | -8/Materials | Discovered new exit (range 8) 3904 | -8/Materials | Lost 3 parts (1n2w) 3975 | -8/Materials | Lost 4 parts (2n1u1w) 3978 | -8/Materials | Discovered exit to Factory (range 15) 3986 | -8/Materials | Destroyed 7 combat bots 4021 | -8/Materials | Entered Factory 4021 | -7/Factory | Evolved 2 slots: Utility x2 4252 | -7/Factory | Build established: Tank 5221 | -7/Factory | First assault squad dispatched 5431 | -7/Factory | Discovered new exit (range 12) 5457 | -7/Factory | Entered another Factory area 5457 | -6/Factory | Evolved 2 slots: Utility x2 5786 | -6/Factory | Found Prototype Launcher 5807 | -6/Factory | First assault squad dispatched 5828 | -6/Factory | Identified Rocket Array 5830 | -6/Factory | Garrison activated, responded to threat 5870 | -6/Factory | Destroyed 13 combat bots 5889 | -6/Factory | Found Rocket Array 6256 | -6/Factory | Garrison activated, responded to threat 6336 | -6/Factory | Lost 7 parts (4u3w) 6400 | -6/Factory | Lost 3 parts (1n2u) 6411 | -6/Factory | Build established: Scavenger-Tank 6482 | -6/Factory | Lost 6 parts (1p4u1w) 6542 | -6/Factory | Lost 7 parts (1p2n2u2w) 6661 | -6/Factory | Discovered new exit (range 15) 6678 | -6/Factory | Entered another Factory area 6678 | -5/Factory | Evolved 2 slots: Utility x2 6782 | -5/Factory | Lost 3 parts (1p1n1w) 6978 | -5/Factory | First assault squad dispatched 7026 | -5/Factory | System corruption reached 10% 7036 | -5/Factory | Core integrity fell below 50% 7056 | -5/Factory | Destroyed 10 combat bots 7060 | -5/Factory | Core integrity fell below 20% 7072 | -5/Factory | Destroyed by P-70 Sage with Tesla Rifle Last Messages --------------- 07048_ U-05 Engineer lays Concrete. 07048_ Connecting with Fabricator... 07048_ ALERT: Suspicious activity at Fabricator F002. Dispatching Investigation squad. 07049_ K-01 Serf collects debris. 07051_ System corrupted: IFF burst signal emitted. 07052_ Penetrated by Slug. 07052_ U-05 Engineer lays Concrete. 07055_ Penetrated by Slug. 07057_ Slammed into H-66 Slayer. 07057_ Slug penetrates Wall. 07058_ Slammed into H-66 Slayer. 07059_ Penetrated by Slug. 07060_ Wheel destroyed. 07060_ Penetrated by Slug. 07062_ Slug penetrates Construction Platform. 07068_ Penetrated by Slug. 07068_ Slug penetrates Wall. 07069_ MXQLBI1QJUFBJ